[Event "*** Titled Tuesday Blitz"]
[Site "Chess.com"]
[Date "2021.04.20"]
[Round "8"]
[White "SHIVACalypso"]
[Black "SanchezKelvin"]
[Result "1-0"]
[WhiteElo "2466"]
[BlackElo "140"]
[TimeControl "180+1"]
[EndTime "11:26:21 PDT"]
[Termination "SHIVACalypso won on time"]

1. Nf3 {[%clk 0:03:00.9]} 1... g6 {[%clk 0:01:43.5]} 2. c4 {[%clk 0:02:39.5]}
2... Bg7 {[%clk 0:01:42.2]} 3. g3 {[%clk 0:02:40.4]} 3... c5 {[%clk 0:01:42]} 4.
Bg2 {[%clk 0:02:41.3]} 4... Nc6 {[%clk 0:01:42.9]} 5. O-O {[%clk 0:02:42.2]}
5... Nf6 {[%clk 0:01:43]} 6. Nc3 {[%clk 0:02:42.4]} 6... O-O {[%clk 0:01:40.4]}
7. d3 {[%clk 0:02:42.8]} 7... a6 {[%clk 0:01:39.3]} 8. Rb1 {[%clk 0:02:41]} 8...
Rb8 {[%clk 0:01:37.8]} 9. a3 {[%clk 0:02:40]} 9... b5 {[%clk 0:01:38]} 10. cxb5
{[%clk 0:02:40.7]} 10... axb5 {[%clk 0:01:38.9]} 11. b4 {[%clk 0:02:40.3]} 11...
cxb4 {[%clk 0:01:39.5]} 12. axb4 {[%clk 0:02:41.2]} 12... d5 {[%clk 0:01:39.1]}
13. Bf4 {[%clk 0:02:37.7]} 13... Rb6 {[%clk 0:01:37.8]} 14. Qd2 {[%clk
0:02:34.6]} 14... Bg4 {[%clk 0:01:29.7]} 15. Rfc1 {[%clk 0:02:24.7]} 15... Qd7
{[%clk 0:01:17.6]} 16. Ne5 {[%clk 0:02:18.4]} 16... Nxe5 {[%clk 0:01:17.4]} 17.
Bxe5 {[%clk 0:02:19.3]} 17... Be6 {[%clk 0:01:14.2]} 18. e3 {[%clk 0:02:14.7]}
18... Ne8 {[%clk 0:00:38.6]} 19. Bxg7 {[%clk 0:02:12.1]} 19... Nxg7 {[%clk
0:00:39.5]} 20. Ne2 {[%clk 0:02:10.5]} 20... f6 {[%clk 0:00:33.4]} 21. Rc5
{[%clk 0:02:05.5]} 21... Bf7 {[%clk 0:00:29.2]} 22. Rbc1 {[%clk 0:02:01.2]}
22... Rfb8 {[%clk 0:00:21.1]} 23. Rc7 {[%clk 0:01:56.2]} 23... Qd6 {[%clk
0:00:20.8]} 24. R7c5 {[%clk 0:01:33.8]} 24... Qd7 {[%clk 0:00:18.1]} 25. Nd4
{[%clk 0:01:27.6]} 25... e5 {[%clk 0:00:15.2]} 26. Nb3 {[%clk 0:01:26.8]} 26...
Qd8 {[%clk 0:00:10.7]} 27. Na5 {[%clk 0:01:24.6]} 27... Qd7 {[%clk 0:00:09.7]}
28. Rc7 {[%clk 0:01:22.1]} 28... Qd6 {[%clk 0:00:08.5]} 29. R7c5 {[%clk
0:01:17.7]} 29... Be6 {[%clk 0:00:07.4]} 30. Qc3 {[%clk 0:01:08.1]} 30... d4
{[%clk 0:00:06.3]} 31. exd4 {[%clk 0:01:05.7]} 31... exd4 {[%clk 0:00:06]} 32.
Qb2 {[%clk 0:01:04.2]} 32... Nf5 {[%clk 0:00:05.4]} 33. Rc6 {[%clk 0:01:02.9]}
33... Rxc6 {[%clk 0:00:04.6]} 34. Rxc6 {[%clk 0:01:03.6]} 34... Qd7 {[%clk
0:00:04.6]} 35. Qe2 {[%clk 0:01:01.4]} 35... Bf7 {[%clk 0:00:04.5]} 36. Qc2
{[%clk 0:00:58.5]} 36... Ne7 {[%clk 0:00:03.8]} 37. Rc7 {[%clk 0:00:57.9]} 37...
Qe6 {[%clk 0:00:03.8]} 38. Qc5 {[%clk 0:00:51.2]} 1-0

[Event "*** Titled Tuesday Blitz"]
[Site "Chess.com"]
[Date "2021.04.20"]
[Round "8"]
[White "JiiHart"]
[Black "anon569"]
[Result "0-1"]
[WhiteElo "1989"]
[BlackElo "2227"]
[TimeControl "180+1"]
[EndTime "11:26:21 PDT"]
[Termination "anon569 won on time"]

1. e4 {[%clk 0:03:00.9]} 1... c5 {[%clk 0:02:57.2]} 2. Nf3 {[%clk 0:03:00.8]}
2... d6 {[%clk 0:02:57.3]} 3. d4 {[%clk 0:03:01.3]} 3... cxd4 {[%clk 0:02:57.9]}
4. Nxd4 {[%clk 0:03:02.2]} 4... Nf6 {[%clk 0:02:58]} 5. Nc3 {[%clk 0:03:02.7]}
5... a6 {[%clk 0:02:58.6]} 6. Bg5 {[%clk 0:03:02.6]} 6... Nbd7 {[%clk
0:02:58.5]} 7. f4 {[%clk 0:03:02.7]} 7... Qc7 {[%clk 0:02:58.6]} 8. Qf3 {[%clk
0:02:58.8]} 8... b5 {[%clk 0:02:56.8]} 9. Nd5 {[%clk 0:02:39.4]} 9... Nxd5
{[%clk 0:02:51.5]} 10. exd5 {[%clk 0:02:39.5]} 10... Bb7 {[%clk 0:02:51.7]} 11.
O-O-O {[%clk 0:02:20.6]} 11... g6 {[%clk 0:02:46]} 12. Nc6 {[%clk 0:02:18]}
12... Rc8 {[%clk 0:02:34.5]} 13. Bd3 {[%clk 0:01:45.3]} 13... Bxc6 {[%clk
0:02:23.8]} 14. dxc6 {[%clk 0:01:46.2]} 14... Qxc6 {[%clk 0:02:24.3]} 15. Be4
{[%clk 0:01:40]} 15... Qb6 {[%clk 0:02:13.7]} 16. Rhe1 {[%clk 0:01:38.7]} 16...
Nc5 {[%clk 0:02:03.7]} 17. f5 {[%clk 0:01:21.8]} 17... Nxe4 {[%clk 0:02:00.3]}
18. Qxe4 {[%clk 0:01:20.8]} 18... gxf5 {[%clk 0:01:47.3]} 19. Qxf5 {[%clk
0:01:03.7]} 19... Qc5 {[%clk 0:01:46]} 20. Rd5 {[%clk 0:00:54.5]} 20... Qc7
{[%clk 0:01:08]} 21. Rxd6 {[%clk 0:00:39.8]} 21... Rg8 {[%clk 0:01:06]} 22. Rd2
{[%clk 0:00:15.2]} 22... Rg6 {[%clk 0:00:28.1]} 23. Rf2 {[%clk 0:00:09.6]} 23...
e6 {[%clk 0:00:25.5]} 24. Rxe6+ {[%clk 0:00:02]} 24... Rxe6 {[%clk 0:00:23.4]}
0-1

[Event "*** Titled Tuesday Blitz"]
[Site "Chess.com"]
[Date "2021.04.20"]
[Round "8"]
[White "mr65"]
[Black "ybruned"]
[Result "0-1"]
[WhiteElo "2132"]
[BlackElo "2322"]
[TimeControl "180+1"]
[EndTime "11:26:23 PDT"]
[Termination "ybruned won by resignation"]

1. e4 {[%clk 0:03:00.9]} 1... b6 {[%clk 0:02:59.3]} 2. Nc3 {[%clk 0:02:58]} 2...
Bb7 {[%clk 0:02:58.2]} 3. Nf3 {[%clk 0:02:58]} 3... e6 {[%clk 0:02:58.4]} 4. Be2
{[%clk 0:02:56.7]} 4... Bb4 {[%clk 0:02:50.6]} 5. d3 {[%clk 0:02:51.1]} 5... d5
{[%clk 0:02:49]} 6. exd5 {[%clk 0:02:50.4]} 6... exd5 {[%clk 0:02:48.6]} 7. O-O
{[%clk 0:02:50.1]} 7... Nf6 {[%clk 0:02:47.5]} 8. a3 {[%clk 0:02:49.9]} 8... Be7
{[%clk 0:02:46.5]} 9. d4 {[%clk 0:02:48.7]} 9... O-O {[%clk 0:02:46.9]} 10. Bg5
{[%clk 0:02:45.4]} 10... Nbd7 {[%clk 0:02:47]} 11. h3 {[%clk 0:02:43.6]} 11...
Ne4 {[%clk 0:02:43.1]} 12. Nxe4 {[%clk 0:02:40.4]} 12... dxe4 {[%clk 0:02:40.7]}
13. Bxe7 {[%clk 0:02:38.9]} 13... Qxe7 {[%clk 0:02:41.3]} 14. Nh2 {[%clk
0:02:36.2]} 14... f5 {[%clk 0:02:35.4]} 15. f3 {[%clk 0:02:35.9]} 15... e3
{[%clk 0:02:27]} 16. c3 {[%clk 0:02:23.6]} 16... f4 {[%clk 0:02:26.2]} 17. a4
{[%clk 0:02:16.8]} 17... a5 {[%clk 0:02:25]} 18. Ng4 {[%clk 0:02:08.1]} 18... h5
{[%clk 0:02:08.9]} 19. Nh2 {[%clk 0:02:07.1]} 19... Qg5 {[%clk 0:02:03]} 20.
Qb3+ {[%clk 0:01:58.3]} 20... Kh8 {[%clk 0:02:01.4]} 21. Qb5 {[%clk 0:01:58]}
21... Qxb5 {[%clk 0:01:57.5]} 22. Bxb5 {[%clk 0:01:54.3]} 22... Nf6 {[%clk
0:01:56.9]} 23. Rfe1 {[%clk 0:01:47.4]} 23... g5 {[%clk 0:01:55.7]} 24. b4
{[%clk 0:01:35.5]} 24... Rfd8 {[%clk 0:01:49.4]} 25. Red1 {[%clk 0:01:23.5]}
25... Nd5 {[%clk 0:01:46.5]} 26. Rd3 {[%clk 0:01:20.4]} 26... axb4 {[%clk
0:01:44.9]} 27. cxb4 {[%clk 0:01:19.2]} 27... Nxb4 {[%clk 0:01:45.3]} 28. Rdd1
{[%clk 0:01:15.4]} 28... Ba6 {[%clk 0:01:31.3]} 29. h4 {[%clk 0:01:00.5]} 29...
gxh4 {[%clk 0:01:27.7]} 30. Bxa6 {[%clk 0:00:51.1]} 30... Rxa6 {[%clk
0:01:26.1]} 31. Rdc1 {[%clk 0:00:49]} 31... Ra7 {[%clk 0:01:02.2]} 32. Rc4
{[%clk 0:00:41.9]} 32... Nd5 {[%clk 0:01:02.7]} 33. Rc6 {[%clk 0:00:39.1]} 33...
Kg7 {[%clk 0:01:01.7]} 34. Nf1 {[%clk 0:00:29.8]} 34... Raa8 {[%clk 0:00:58.1]}
35. Re6 {[%clk 0:00:24.4]} 35... Re8 {[%clk 0:00:53.4]} 36. Re5 {[%clk
0:00:23.5]} 36... Rxe5 {[%clk 0:00:51.7]} 37. dxe5 {[%clk 0:00:22.8]} 37... Re8
{[%clk 0:00:52.3]} 38. Nh2 {[%clk 0:00:21.6]} 38... Rxe5 {[%clk 0:00:51.6]} 39.
Kf1 {[%clk 0:00:21.6]} 39... e2+ {[%clk 0:00:49.3]} 40. Ke1 {[%clk 0:00:21.1]}
40... Nb4 {[%clk 0:00:49.7]} 41. Kd2 {[%clk 0:00:19.7]} 41... Nc2 {[%clk
0:00:47.6]} 42. Kxc2 {[%clk 0:00:18.7]} 42... e1=Q {[%clk 0:00:48.1]} 43. Rxe1
{[%clk 0:00:17.9]} 43... Rxe1 {[%clk 0:00:49]} 0-1

[Event "*** Titled Tuesday Blitz"]
[Site "Chess.com"]
[Date "2021.04.20"]
[Round "8"]
[White "alexgo05"]
[Black "GoValya"]
[Result "1-0"]
[WhiteElo "2472"]
[BlackElo "2301"]
[TimeControl "180+1"]
[EndTime "11:26:25 PDT"]
[Termination "alexgo05 won by resignation"]

1. e4 {[%clk 0:03:00.9]} 1... e6 {[%clk 0:02:57.7]} 2. d3 {[%clk 0:02:54.3]}
2... d5 {[%clk 0:02:55.9]} 3. Nd2 {[%clk 0:02:54.9]} 3... Nf6 {[%clk 0:02:54.4]}
4. Ngf3 {[%clk 0:02:55.4]} 4... dxe4 {[%clk 0:02:54.1]} 5. dxe4 {[%clk
0:02:55.4]} 5... b6 {[%clk 0:02:53.5]} 6. Bb5+ {[%clk 0:02:45.2]} 6... Nbd7
{[%clk 0:02:53.2]} 7. O-O {[%clk 0:02:43.8]} 7... Bc5 {[%clk 0:02:47.6]} 8. c3
{[%clk 0:02:40.6]} 8... O-O {[%clk 0:02:42.6]} 9. e5 {[%clk 0:02:37.9]} 9... Nd5
{[%clk 0:02:35.8]} 10. Ne4 {[%clk 0:02:35.7]} 10... Bb7 {[%clk 0:02:30.9]} 11.
Bg5 {[%clk 0:02:16.8]} 11... f6 {[%clk 0:02:12.2]} 12. Bxd7 {[%clk 0:02:13.6]}
12... Qxd7 {[%clk 0:02:04.3]} 13. exf6 {[%clk 0:02:13.9]} 13... gxf6 {[%clk
0:01:40.3]} 14. Bxf6 {[%clk 0:02:14]} 14... Rxf6 {[%clk 0:01:40.1]} 15. Qxd5
{[%clk 0:02:13]} 15... Qxd5 {[%clk 0:01:02.3]} 16. Nxf6+ {[%clk 0:02:12.1]}
16... Kg7 {[%clk 0:00:55.3]} 17. Nxd5 {[%clk 0:02:13]} 17... Bxd5 {[%clk
0:00:55.5]} 18. Nd4 {[%clk 0:02:05.1]} 18... e5 {[%clk 0:00:45.1]} 19. Nf5+
{[%clk 0:02:02.4]} 19... Kf6 {[%clk 0:00:44.6]} 20. Ne3 {[%clk 0:02:03]} 20...
Bc6 {[%clk 0:00:41.7]} 21. b4 {[%clk 0:01:55.6]} 21... Bd6 {[%clk 0:00:29.6]}
22. Rad1 {[%clk 0:01:55.2]} 22... Rg8 {[%clk 0:00:28.6]} 23. Rfe1 {[%clk
0:01:48.5]} 23... a5 {[%clk 0:00:20.1]} 24. a3 {[%clk 0:01:47.7]} 24... axb4
{[%clk 0:00:20.6]} 25. axb4 {[%clk 0:01:47.5]} 25... Ke6 {[%clk 0:00:20.5]} 26.
g3 {[%clk 0:01:42.5]} 26... h5 {[%clk 0:00:20.4]} 27. h4 {[%clk 0:01:20.2]}
27... Bf3 {[%clk 0:00:20]} 28. Rd2 {[%clk 0:01:19.9]} 28... Be7 {[%clk
0:00:18.9]} 29. Nc4 {[%clk 0:01:18.8]} 29... e4 {[%clk 0:00:19.1]} 30. Kh2
{[%clk 0:01:12.2]} 30... Kf5 {[%clk 0:00:18.5]} 31. Rd4 {[%clk 0:01:09.1]} 31...
c5 {[%clk 0:00:17.9]} 32. Rd5+ {[%clk 0:01:06.4]} 32... Ke6 {[%clk 0:00:17.7]}
33. Re5+ {[%clk 0:01:05.5]} 33... Kf6 {[%clk 0:00:17.9]} 34. Rg5 {[%clk
0:00:59.6]} 34... Rxg5 {[%clk 0:00:16.2]} 35. hxg5+ {[%clk 0:01:00.5]} 35...
Kxg5 {[%clk 0:00:16.7]} 36. Ne5 {[%clk 0:00:51]} 36... cxb4 {[%clk 0:00:14.6]}
37. Nxf3+ {[%clk 0:00:51.3]} 37... Kg4 {[%clk 0:00:13.1]} 38. Rxe4+ {[%clk
0:00:47.3]} 38... Kxf3 {[%clk 0:00:13.1]} 39. Rxe7 {[%clk 0:00:48.2]} 39... bxc3
{[%clk 0:00:13.6]} 40. Rc7 {[%clk 0:00:48.4]} 40... Kxf2 {[%clk 0:00:12.2]} 41.
Rxc3 {[%clk 0:00:49.3]} 41... b5 {[%clk 0:00:11.8]} 42. Rb3 {[%clk 0:00:50.2]}
42... h4 {[%clk 0:00:11.4]} 43. gxh4 {[%clk 0:00:50.5]} 1-0

[Event "*** Titled Tuesday Blitz"]
[Site "Chess.com"]
[Date "2021.04.20"]
[Round "8"]
[White "pirulillo"]
[Black "Nils_03"]
[Result "0-1"]
[WhiteElo "2215"]
[BlackElo "2401"]
[TimeControl "180+1"]
[EndTime "11:26:25 PDT"]
[Termination "Nils_03 won by resignation"]

1. e4 {[%clk 0:02:59.2]} 1... c5 {[%clk 0:02:59.6]} 2. Nf3 {[%clk 0:02:58.8]}
2... Nc6 {[%clk 0:02:58.9]} 3. Bb5 {[%clk 0:02:57.3]} 3... g6 {[%clk 0:02:57.6]}
4. Bxc6 {[%clk 0:02:56.7]} 4... bxc6 {[%clk 0:02:57.2]} 5. O-O {[%clk
0:02:55.7]} 5... Bg7 {[%clk 0:02:56.9]} 6. Re1 {[%clk 0:02:54.9]} 6... Nh6
{[%clk 0:02:54.8]} 7. h3 {[%clk 0:02:50.7]} 7... O-O {[%clk 0:02:53]} 8. Nc3
{[%clk 0:02:34.8]} 8... d6 {[%clk 0:02:52.1]} 9. d3 {[%clk 0:02:22.4]} 9... f5
{[%clk 0:02:50.9]} 10. e5 {[%clk 0:02:08.8]} 10... d5 {[%clk 0:02:50.7]} 11. Na4
{[%clk 0:02:03.2]} 11... Qa5 {[%clk 0:02:25.8]} 12. c4 {[%clk 0:02:02.7]} 12...
dxc4 {[%clk 0:02:20.2]} 13. dxc4 {[%clk 0:01:57.5]} 13... Be6 {[%clk 0:02:19.8]}
14. Bd2 {[%clk 0:01:42.2]} 14... Qc7 {[%clk 0:02:18.4]} 15. Rc1 {[%clk
0:01:28.1]} 15... Kh8 {[%clk 0:02:04]} 16. Nxc5 {[%clk 0:01:21.7]} 16... Bg8
{[%clk 0:02:03.8]} 17. b3 {[%clk 0:01:20.3]} 17... Nf7 {[%clk 0:02:01.1]} 18.
Bc3 {[%clk 0:01:16.2]} 18... Nd8 {[%clk 0:01:57.5]} 19. Qd7 {[%clk 0:00:57.7]}
19... Ne6 {[%clk 0:01:47.7]} 20. Qxc7 {[%clk 0:00:50.4]} 20... Nxc7 {[%clk
0:01:48.6]} 21. Nd4 {[%clk 0:00:40]} 21... Rfc8 {[%clk 0:01:35.9]} 22. Nxc6
{[%clk 0:00:37.3]} 22... Ne8 {[%clk 0:01:28.5]} 23. Nxe7 {[%clk 0:00:34.6]}
23... Rxc5 {[%clk 0:01:27.5]} 24. Nxg8 {[%clk 0:00:33.5]} 24... Kxg8 {[%clk
0:01:27]} 25. Rcd1 {[%clk 0:00:34.4]} 25... Rac8 {[%clk 0:01:21]} 26. f4 {[%clk
0:00:34.4]} 26... R5c7 {[%clk 0:01:15.1]} 27. Rd3 {[%clk 0:00:33.9]} 27... Bf8
{[%clk 0:01:14.2]} 28. Red1 {[%clk 0:00:33.6]} 28... Bc5+ {[%clk 0:01:13.6]} 29.
Kf1 {[%clk 0:00:33.9]} 29... Ng7 {[%clk 0:01:13.9]} 30. g3 {[%clk 0:00:33.5]}
30... Ne6 {[%clk 0:01:13.1]} 31. Kg2 {[%clk 0:00:31.9]} 31... Kf7 {[%clk
0:01:10.4]} 32. Kf3 {[%clk 0:00:31.7]} 32... Ke7 {[%clk 0:01:08.7]} 33. R1d2
{[%clk 0:00:31.8]} 33... Rd8 {[%clk 0:01:06.1]} 34. Rd5 {[%clk 0:00:31.4]} 34...
Bb6 {[%clk 0:01:00.8]} 35. Bb2 {[%clk 0:00:30.9]} 35... Rcd7 {[%clk 0:00:56.9]}
36. Ba3+ {[%clk 0:00:30.6]} 36... Ke8 {[%clk 0:00:56.4]} 37. Rd6 {[%clk
0:00:30.5]} 37... Rxd6 {[%clk 0:00:52.7]} 38. exd6 {[%clk 0:00:31.4]} 38... Kd7
{[%clk 0:00:51.3]} 39. Re2 {[%clk 0:00:30]} 39... Nd4+ {[%clk 0:00:50.8]} 40.
Kf2 {[%clk 0:00:29.3]} 40... Nxe2+ {[%clk 0:00:51.7]} 41. Kxe2 {[%clk
0:00:30.2]} 41... Re8+ {[%clk 0:00:51.4]} 42. Kd3 {[%clk 0:00:30.3]} 42... Re3+
{[%clk 0:00:51.6]} 43. Kd2 {[%clk 0:00:30.4]} 43... Rxg3 {[%clk 0:00:51.7]} 44.
c5 {[%clk 0:00:30.8]} 44... Bd8 {[%clk 0:00:52]} 45. b4 {[%clk 0:00:31.7]} 45...
Rxa3 {[%clk 0:00:51.2]} 46. b5 {[%clk 0:00:32.6]} 46... Rxa2+ {[%clk 0:00:50.9]}
47. Kd3 {[%clk 0:00:33.3]} 47... a6 {[%clk 0:00:50.3]} 48. Kc4 {[%clk
0:00:34.2]} 48... axb5+ {[%clk 0:00:50.3]} 49. Kxb5 {[%clk 0:00:35.1]} 49...
Rb2+ {[%clk 0:00:50.8]} 50. Kc4 {[%clk 0:00:35.8]} 50... Kc6 {[%clk 0:00:51.6]}
0-1

[Event "*** Titled Tuesday Blitz"]
[Site "Chess.com"]
[Date "2021.04.20"]
[Round "8"]
[White "Mikhal867"]
[Black "albi1999"]
[Result "0-1"]
[WhiteElo "2440"]
[BlackElo "2605"]
[TimeControl "180+1"]
[EndTime "11:26:27 PDT"]
[Termination "albi1999 won by resignation"]

1. c4 {[%clk 0:03:00.9]} 1... e5 {[%clk 0:02:58.6]} 2. Nc3 {[%clk 0:02:59.6]}
2... Bb4 {[%clk 0:02:57]} 3. Nd5 {[%clk 0:02:59.1]} 3... Bc5 {[%clk 0:02:51.7]}
4. g3 {[%clk 0:02:59.1]} 4... c6 {[%clk 0:02:51]} 5. Nc3 {[%clk 0:02:59]} 5...
d5 {[%clk 0:02:49.4]} 6. cxd5 {[%clk 0:02:57.5]} 6... cxd5 {[%clk 0:02:50.3]} 7.
Bg2 {[%clk 0:02:55.4]} 7... Nf6 {[%clk 0:02:47.5]} 8. Qb3 {[%clk 0:02:51.1]}
8... d4 {[%clk 0:02:38.7]} 9. Bxb7 {[%clk 0:02:45.9]} 9... Bxb7 {[%clk
0:02:34.3]} 10. Qxb7 {[%clk 0:02:45.3]} 10... Nbd7 {[%clk 0:02:34.5]} 11. Ne4
{[%clk 0:02:30.7]} 11... O-O {[%clk 0:02:33.6]} 12. Nxc5 {[%clk 0:02:24.1]}
12... Nxc5 {[%clk 0:02:32.5]} 13. Qb5 {[%clk 0:02:22.6]} 13... Qd5 {[%clk
0:02:27.9]} 14. f3 {[%clk 0:02:05.5]} 14... Rab8 {[%clk 0:02:24.5]} 15. e4
{[%clk 0:01:56.4]} 15... Nfxe4 {[%clk 0:01:49.7]} 16. Qe2 {[%clk 0:01:54.5]}
16... Nd6 {[%clk 0:01:44.8]} 17. d3 {[%clk 0:01:53.3]} 17... f5 {[%clk
0:01:40.5]} 18. Nh3 {[%clk 0:01:49.5]} 18... Rfe8 {[%clk 0:01:27.1]} 19. O-O
{[%clk 0:01:47.2]} 19... Qb7 {[%clk 0:01:22.7]} 20. b3 {[%clk 0:01:41.4]} 20...
Qa6 {[%clk 0:01:20.3]} 21. Nf2 {[%clk 0:01:27.5]} 21... e4 {[%clk 0:01:16.5]}
22. Bf4 {[%clk 0:01:26.8]} 22... e3 {[%clk 0:00:37.2]} 23. Nh3 {[%clk
0:01:21.4]} 23... Rbd8 {[%clk 0:00:33.8]} 24. Rfd1 {[%clk 0:01:20.5]} 24... Nb5
{[%clk 0:00:33]} 25. Rac1 {[%clk 0:01:13.2]} 25... Ne6 {[%clk 0:00:31.8]} 26. a4
{[%clk 0:01:00]} 26... Nc3 {[%clk 0:00:27.7]} 27. Rxc3 {[%clk 0:00:57.7]} 27...
dxc3 {[%clk 0:00:28.6]} 28. Qxe3 {[%clk 0:00:56.4]} 28... Nd4 {[%clk 0:00:25.6]}
29. Qf2 {[%clk 0:00:54.3]} 29... Qc6 {[%clk 0:00:20.3]} 30. Be3 {[%clk
0:00:50.3]} 30... Nxf3+ {[%clk 0:00:17]} 31. Kf1 {[%clk 0:00:50.3]} 31... Ne5
{[%clk 0:00:13.4]} 32. d4 {[%clk 0:00:44.3]} 32... Ng4 {[%clk 0:00:13.3]} 33. d5
{[%clk 0:00:41.8]} 33... Rxd5 {[%clk 0:00:10.9]} 34. Qf3 {[%clk 0:00:35.6]}
34... Rxd1+ {[%clk 0:00:09.4]} 35. Qxd1 {[%clk 0:00:34.9]} 35... Nxe3+ {[%clk
0:00:09.1]} 0-1

[Event "*** Titled Tuesday Blitz"]
[Site "Chess.com"]
[Date "2021.04.20"]
[Round "8"]
[White "dretch"]
[Black "Sychev_Klementy"]
[Result "1-0"]
[WhiteElo "2796"]
[BlackElo "2893"]
[TimeControl "180+1"]
[EndTime "11:26:33 PDT"]
[Termination "dretch won on time"]

1. d4 {[%clk 0:03:00.9]} 1... Nf6 {[%clk 0:02:59.1]} 2. c4 {[%clk 0:03:01.2]}
2... g6 {[%clk 0:02:59.3]} 3. Nc3 {[%clk 0:03:01.7]} 3... d5 {[%clk 0:02:59.7]}
4. e3 {[%clk 0:03:01.6]} 4... Bg7 {[%clk 0:02:59.8]} 5. Qb3 {[%clk 0:03:02.2]}
5... e6 {[%clk 0:02:58.1]} 6. Qa3 {[%clk 0:03:02.3]} 6... c6 {[%clk 0:02:54.3]}
7. Nf3 {[%clk 0:03:01.9]} 7... a5 {[%clk 0:02:54.1]} 8. b3 {[%clk 0:03:00.1]}
8... Na6 {[%clk 0:02:53.2]} 9. Be2 {[%clk 0:02:59.1]} 9... Nb4 {[%clk
0:02:51.6]} 10. Qb2 {[%clk 0:02:58.9]} 10... O-O {[%clk 0:02:46.8]} 11. O-O
{[%clk 0:02:58.1]} 11... Ne4 {[%clk 0:02:47.4]} 12. Rd1 {[%clk 0:02:53]} 12...
c5 {[%clk 0:02:45.8]} 13. a3 {[%clk 0:02:50.7]} 13... Nc6 {[%clk 0:02:44.1]} 14.
Qc2 {[%clk 0:02:47.3]} 14... Nxc3 {[%clk 0:02:34.5]} 15. Qxc3 {[%clk 0:02:47.3]}
15... cxd4 {[%clk 0:02:34.8]} 16. exd4 {[%clk 0:02:47.2]} 16... b6 {[%clk
0:02:20.3]} 17. Bg5 {[%clk 0:02:37.6]} 17... Qd6 {[%clk 0:02:05]} 18. Rac1
{[%clk 0:02:27]} 18... Ba6 {[%clk 0:01:56.1]} 19. Qe3 {[%clk 0:02:13.5]} 19...
Rfc8 {[%clk 0:01:50.4]} 20. c5 {[%clk 0:01:53.6]} 20... bxc5 {[%clk 0:01:46.1]}
21. Bxa6 {[%clk 0:01:45.7]} 21... Rxa6 {[%clk 0:01:43.6]} 22. Rxc5 {[%clk
0:01:43]} 22... Raa8 {[%clk 0:01:12.4]} 23. Rdc1 {[%clk 0:01:41.5]} 23... Bf8
{[%clk 0:00:23.3]} 24. Ne5 {[%clk 0:01:30.3]} 24... Na7 {[%clk 0:00:16.8]} 25.
Qf4 {[%clk 0:01:26.6]} 25... f5 {[%clk 0:00:14.6]} 26. Bh6 {[%clk 0:01:06.6]}
26... Be7 {[%clk 0:00:11.2]} 27. Qg3 {[%clk 0:00:59.8]} 27... Rxc5 {[%clk
0:00:09.8]} 28. dxc5 {[%clk 0:00:53.8]} 28... Qc7 {[%clk 0:00:05.9]} 29. Bf4
{[%clk 0:00:49.5]} 29... Qb7 {[%clk 0:00:04.2]} 30. Nxg6 {[%clk 0:00:48.4]}
30... Bf6 {[%clk 0:00:03.4]} 31. Be5 {[%clk 0:00:36.4]} 31... Qf7 {[%clk
0:00:01.4]} 32. Nf4+ {[%clk 0:00:32.2]} 32... Kf8 {[%clk 0:00:01]} 33. Qc3
{[%clk 0:00:25.3]} 1-0

[Event "*** Titled Tuesday Blitz"]
[Site "Chess.com"]
[Date "2021.04.20"]
[Round "8"]
[White "Nuvas"]
[Black "djano"]
[Result "1-0"]
[WhiteElo "2639"]
[BlackElo "2469"]
[TimeControl "180+1"]
[EndTime "11:26:33 PDT"]
[Termination "Nuvas won by resignation"]

1. d4 {[%clk 0:03:00.9]} 1... c6 {[%clk 0:02:58.5]} 2. e4 {[%clk 0:02:59.7]}
2... d5 {[%clk 0:02:59]} 3. Nc3 {[%clk 0:02:59.7]} 3... dxe4 {[%clk 0:02:58.9]}
4. Nxe4 {[%clk 0:03:00.6]} 4... Nf6 {[%clk 0:02:59.7]} 5. Nxf6+ {[%clk 0:03:00]}
5... exf6 {[%clk 0:03:00.6]} 6. Nf3 {[%clk 0:02:58.3]} 6... Bd6 {[%clk 0:03:00]}
7. Bd3 {[%clk 0:02:57.1]} 7... O-O {[%clk 0:02:59.9]} 8. O-O {[%clk 0:02:57.2]}
8... Bg4 {[%clk 0:02:53.2]} 9. h3 {[%clk 0:02:49.8]} 9... Bh5 {[%clk 0:02:52.6]}
10. c3 {[%clk 0:02:49.3]} 10... Nd7 {[%clk 0:02:50]} 11. Qc2 {[%clk 0:02:38.3]}
11... Bg6 {[%clk 0:02:44.4]} 12. Re1 {[%clk 0:02:35.7]} 12... c5 {[%clk
0:02:41.5]} 13. Bxg6 {[%clk 0:02:34.5]} 13... hxg6 {[%clk 0:02:41.2]} 14. dxc5
{[%clk 0:02:32.8]} 14... Nxc5 {[%clk 0:02:40.7]} 15. Be3 {[%clk 0:02:32.6]}
15... Qc7 {[%clk 0:02:37.7]} 16. Rad1 {[%clk 0:02:29.3]} 16... Rfe8 {[%clk
0:02:31.8]} 17. c4 {[%clk 0:02:21.1]} 17... a5 {[%clk 0:02:26.4]} 18. Nd4 {[%clk
0:02:20.7]} 18... Bf8 {[%clk 0:02:11.2]} 19. Nb5 {[%clk 0:02:18.3]} 19... Qc6
{[%clk 0:02:11.6]} 20. b3 {[%clk 0:02:13.2]} 20... f5 {[%clk 0:02:09.5]} 21. Bf4
{[%clk 0:02:02.7]} 21... Re4 {[%clk 0:01:53.8]} 22. Rxe4 {[%clk 0:01:53.3]}
22... fxe4 {[%clk 0:01:54.7]} 23. Rd5 {[%clk 0:01:48.2]} 23... Re8 {[%clk
0:01:45.1]} 24. Bd6 {[%clk 0:01:43.2]} 24... Nd3 {[%clk 0:01:33.3]} 25. Bxf8
{[%clk 0:01:38.8]} 25... Kxf8 {[%clk 0:01:30]} 26. Qd2 {[%clk 0:01:38.1]} 26...
Qf6 {[%clk 0:01:23.4]} 27. Nd6 {[%clk 0:01:30.8]} 27... Re7 {[%clk 0:01:08.3]}
28. Nxe4 {[%clk 0:01:30.6]} 28... Rxe4 {[%clk 0:00:53.9]} 29. Qxd3 {[%clk
0:01:30.3]} 29... Re1+ {[%clk 0:00:47]} 30. Kh2 {[%clk 0:01:30.2]} 30... Qf4+
{[%clk 0:00:46.4]} 31. Qg3 {[%clk 0:01:28.2]} 31... Qxg3+ {[%clk 0:00:27.5]} 32.
Kxg3 {[%clk 0:01:29.1]} 32... b6 {[%clk 0:00:26.2]} 33. Rd6 {[%clk 0:01:26.5]}
33... Re2 {[%clk 0:00:26.4]} 34. a4 {[%clk 0:01:26]} 34... g5 {[%clk 0:00:20]}
35. Rxb6 {[%clk 0:01:24.9]} 35... f5 {[%clk 0:00:20]} 36. Rb5 {[%clk 0:01:23.3]}
36... g6 {[%clk 0:00:18.6]} 37. Rxa5 {[%clk 0:01:18.1]} 37... Kg7 {[%clk
0:00:19]} 38. c5 {[%clk 0:01:13.9]} 38... Rc2 {[%clk 0:00:15.9]} 39. b4 {[%clk
0:01:13.2]} 39... f4+ {[%clk 0:00:16]} 40. Kf3 {[%clk 0:01:11.9]} 40... Rc3+
{[%clk 0:00:16.5]} 41. Kg4 {[%clk 0:01:12.1]} 41... Kh6 {[%clk 0:00:13]} 42. Ra8
{[%clk 0:01:11.7]} 42... Rc2 {[%clk 0:00:11.7]} 43. Kf3 {[%clk 0:01:01.6]} 43...
Rc3+ {[%clk 0:00:12.1]} 44. Ke2 {[%clk 0:01:01.8]} 44... Rc2+ {[%clk 0:00:12.7]}
45. Ke1 {[%clk 0:01:01.6]} 45... Rc1+ {[%clk 0:00:12.8]} 46. Kd2 {[%clk
0:01:01.9]} 46... Rf1 {[%clk 0:00:12.4]} 47. Ke2 {[%clk 0:01:01.6]} 47... Rg1
{[%clk 0:00:13]} 48. c6 {[%clk 0:01:01.5]} 48... Rxg2 {[%clk 0:00:12]} 49. c7
{[%clk 0:01:01.4]} 1-0